[Event "Live Chess"]
[Site "Chess.com"]
[Date "2011.01.15"]
[Round "-"]
[White "hipposcottimus"]
[Black "chubdeez"]
[Result "1-0"]
[CurrentPosition "k1R3nr/p1pp3p/p4Bp1/3P4/1Q6/P4N2/5PPP/qN4K1 b - -"]
[Timezone "UTC"]
[ECO "C00"]
[ECOUrl "https://www.chess.com/openings/French-Defense-Steiner-Variation"]
[UTCDate "2011.01.15"]
[UTCTime "02:18:09"]
[WhiteElo "1363"]
[BlackElo "1084"]
[TimeControl "600"]
[Termination "hipposcottimus won by checkmate"]
[StartTime "02:18:09"]
[EndDate "2011.01.15"]
[EndTime "02:24:57"]
[Link "https://www.chess.com/game/live/87686626"]

1. e4 {[%clk 0:10:00]} 1... e6 {[%clk 0:10:00]} 2. c4 {[%clk 0:09:56.7]} 2... Nc6 {[%clk 0:09:47.1]} 3. d4 {[%clk 0:09:45.5]} 3... g6 {[%clk 0:09:18.1]} 4. d5 {[%clk 0:09:42.1]} 4... exd5 {[%clk 0:08:56.2]} 5. cxd5 {[%clk 0:09:25.1]} 5... Nb4 {[%clk 0:08:35.8]} 6. a3 {[%clk 0:09:08.2]} 6... Na6 {[%clk 0:08:21.5]} 7. Bxa6 {[%clk 0:09:03.6]} 7... bxa6 {[%clk 0:08:19.8]} 8. Nf3 {[%clk 0:08:57.3]} 8... f6 {[%clk 0:08:12.3]} 9. O-O {[%clk 0:08:53.1]} 9... Bb7 {[%clk 0:07:49.7]} 10. e5 {[%clk 0:08:51.3]} 10... Qe7 {[%clk 0:07:30.6]} 11. Re1 {[%clk 0:08:44.1]} 11... O-O-O {[%clk 0:07:19.1]} 12. exf6 {[%clk 0:08:33.1]} 12... Qxf6 {[%clk 0:07:11.9]} 13. Bg5 {[%clk 0:08:28.2]} 13... Qxb2 {[%clk 0:06:56.5]} 14. Bxd8 {[%clk 0:08:04.1]} 14... Qxa1 {[%clk 0:06:50]} 15. Re8 {[%clk 0:08:01.7]} 15... Kb8 {[%clk 0:06:22.3]} 16. Bf6+ {[%clk 0:07:57.1]} 16... Bc8 {[%clk 0:06:12.1]} 17. Qb3+ {[%clk 0:07:47.6]} 17... Bb4 {[%clk 0:05:52.5]} 18. Qxb4+ {[%clk 0:07:44.7]} 18... Ka8 {[%clk 0:05:42.4]} 19. Rxc8# {[%clk 0:07:39.3]} 1-0

[Event "Live Chess"]
[Site "Chess.com"]
[Date "2011.01.15"]
[Round "-"]
[White "hipposcottimus"]
[Black "deso75"]
[Result "1-0"]
[CurrentPosition "8/kpp3P1/p6R/5K2/8/2P5/PP6/8 b - -"]
[Timezone "UTC"]
[ECO "C41"]
[ECOUrl "https://www.chess.com/openings/Philidor-Defense-3.d4-Bg4"]
[UTCDate "2011.01.15"]
[UTCTime "02:02:59"]
[WhiteElo "1360"]
[BlackElo "1329"]
[TimeControl "480"]
[Termination "hipposcottimus won by resignation"]
[StartTime "02:02:59"]
[EndDate "2011.01.15"]
[EndTime "02:12:48"]
[Link "https://www.chess.com/game/live/87683199"]

1. e4 {[%clk 0:08:00]} 1... e5 {[%clk 0:08:00]} 2. Nf3 {[%clk 0:07:57.8]} 2... d6 {[%clk 0:07:56.9]} 3. d4 {[%clk 0:07:48.3]} 3... Bg4 {[%clk 0:07:54.8]} 4. Bc4 {[%clk 0:07:46.9]} 4... h6 {[%clk 0:07:36.6]} 5. dxe5 {[%clk 0:07:27.3]} 5... Nc6 {[%clk 0:07:29.5]} 6. exd6 {[%clk 0:07:23.6]} 6... Bxd6 {[%clk 0:07:25.4]} 7. Nc3 {[%clk 0:07:09.5]} 7... a6 {[%clk 0:07:04.9]} 8. Qd3 {[%clk 0:06:53.3]} 8... Bxf3 {[%clk 0:06:44.5]} 9. Qxf3 {[%clk 0:06:49.3]} 9... Nf6 {[%clk 0:06:38.3]} 10. Nd5 {[%clk 0:06:40.8]} 10... Nd4 {[%clk 0:06:31.8]} 11. Nxf6+ {[%clk 0:06:38.5]} 11... Qxf6 {[%clk 0:06:15.5]} 12. Qxf6 {[%clk 0:06:14.9]} 12... gxf6 {[%clk 0:06:06.7]} 13. Bd3 {[%clk 0:06:14.5]} 13... O-O-O {[%clk 0:06:00.6]} 14. Be3 {[%clk 0:06:06.7]} 14... Bc5 {[%clk 0:05:40.2]} 15. O-O-O {[%clk 0:06:04.9]} 15... Rhg8 {[%clk 0:05:32.5]} 16. g3 {[%clk 0:06:00.8]} 16... Kb8 {[%clk 0:05:16.3]} 17. Bc4 {[%clk 0:05:50.8]} 17... Rgf8 {[%clk 0:04:58.5]} 18. c3 {[%clk 0:05:44.5]} 18... Ne6 {[%clk 0:04:23.4]} 19. Rxd8+ {[%clk 0:05:22.6]} 19... Rxd8 {[%clk 0:04:17.7]} 20. Bxe6 {[%clk 0:05:19.3]} 20... Bxe3+ {[%clk 0:04:14.9]} 21. fxe3 {[%clk 0:05:18.5]} 21... fxe6 {[%clk 0:04:13.7]} 22. Rf1 {[%clk 0:05:18]} 22... Rd3 {[%clk 0:04:03.9]} 23. Rxf6 {[%clk 0:05:08.6]} 23... e5 {[%clk 0:03:56.7]} 24. Rxh6 {[%clk 0:05:04.2]} 24... Rxe3 {[%clk 0:03:55.5]} 25. g4 {[%clk 0:05:00.3]} 25... Rxe4 {[%clk 0:03:53.8]} 26. g5 {[%clk 0:04:59.1]} 26... Rg4 {[%clk 0:03:47.2]} 27. h4 {[%clk 0:04:55]} 27... e4 {[%clk 0:03:43.4]} 28. g6 {[%clk 0:04:54.1]} 28... e3 {[%clk 0:03:40.6]} 29. h5 {[%clk 0:04:51.9]} 29... e2 {[%clk 0:03:37.4]} 30. Kd2 {[%clk 0:04:48.3]} 30... Re4 {[%clk 0:03:30.8]} 31. Ke1 {[%clk 0:04:44.9]} 31... Rg4 {[%clk 0:03:13.3]} 32. Rh7 {[%clk 0:04:43.7]} 32... Ka7 {[%clk 0:03:11.9]} 33. g7 {[%clk 0:04:41.8]} 33... Rg2 {[%clk 0:03:02]} 34. h6 {[%clk 0:04:37.7]} 34... Rg1+ {[%clk 0:02:56.1]} 35. Kxe2 {[%clk 0:04:34.8]} 35... Rg2+ {[%clk 0:02:54.7]} 36. Kf3 {[%clk 0:04:30.2]} 36... Rg6 {[%clk 0:02:53]} 37. Rh8 {[%clk 0:04:27.4]} 37... Rf6+ {[%clk 0:02:47]} 38. Ke4 {[%clk 0:04:26.5]} 38... Re6+ {[%clk 0:02:44.9]} 39. Kf5 {[%clk 0:04:24.1]} 39... Rxh6 {[%clk 0:02:11.4]} 40. Rxh6 {[%clk 0:04:20.1]} 1-0

[Event "Live Chess"]
[Site "Chess.com"]
[Date "2011.01.15"]
[Round "-"]
[White "timdavid"]
[Black "hipposcottimus"]
[Result "1-0"]
[CurrentPosition "r4rk1/pppqb1pp/1n6/3n1N2/4pPQ1/8/PPPP2PP/RNB1K2R w KQ -"]
[Timezone "UTC"]
[ECO "C31"]
[ECOUrl "https://www.chess.com/openings/Kings-Gambit-Declined-Falkbeer-Accepted-Staunton-Line"]
[UTCDate "2011.01.15"]
[UTCTime "01:55:06"]
[WhiteElo "1406"]
[BlackElo "1352"]
[TimeControl "240+5"]
[Termination "timdavid won by resignation"]
[StartTime "01:55:06"]
[EndDate "2011.01.15"]
[EndTime "02:00:07"]
[Link "https://www.chess.com/game/live/87681685"]

1. e4 {[%clk 0:04:00]} 1... e5 {[%clk 0:04:00]} 2. f4 {[%clk 0:04:03.3]} 2... d5 {[%clk 0:04:03.7]} 3. exd5 {[%clk 0:04:01.1]} 3... e4 {[%clk 0:04:07.8]} 4. Qh5 {[%clk 0:03:56]} 4... Nf6 {[%clk 0:04:07.3]} 5. Bb5+ {[%clk 0:03:33.3]} 5... Bd7 {[%clk 0:04:03.8]} 6. Qe5+ {[%clk 0:03:17.3]} 6... Be7 {[%clk 0:04:01.1]} 7. Bxd7+ {[%clk 0:02:34.6]} 7... Nbxd7 {[%clk 0:04:04.3]} 8. Qg5 {[%clk 0:02:19.2]} 8... O-O {[%clk 0:04:07.8]} 9. Ne2 {[%clk 0:01:53.9]} 9... Nb6 {[%clk 0:04:08.1]} 10. Ng3 {[%clk 0:01:43.3]} 10... Nfxd5 {[%clk 0:04:08.4]} 11. Qg4 {[%clk 0:01:08]} 11... f5 {[%clk 0:04:07.1]} 12. Nxf5 {[%clk 0:00:58.2]} 12... Qd7 {[%clk 0:04:07.4]} 1-0

[Event "Live Chess"]
[Site "Chess.com"]
[Date "2011.01.15"]
[Round "-"]
[White "hipposcottimus"]
[Black "jdavidson"]
[Result "0-1"]
[CurrentPosition "r1b1r1k1/5p1p/p3p1pb/4P3/1PBP1n1q/8/3Q2PP/RNB1NRK1 b - -"]
[Timezone "UTC"]
[ECO "B20"]
[ECOUrl "https://www.chess.com/openings/Sicilian-Defense"]
[UTCDate "2011.01.15"]
[UTCTime "01:50:01"]
[WhiteElo "1359"]
[BlackElo "1444"]
[TimeControl "300+2"]
[Termination "jdavidson won by resignation"]
[StartTime "01:50:01"]
[EndDate "2011.01.15"]
[EndTime "01:54:20"]
[Link "https://www.chess.com/game/live/87680539"]

1. e4 {[%clk 0:05:00]} 1... c5 {[%clk 0:05:00]} 2. Bb5 {[%clk 0:04:59.5]} 2... a6 {[%clk 0:04:58.6]} 3. Be2 {[%clk 0:05:01.1]} 3... e6 {[%clk 0:04:59.4]} 4. c3 {[%clk 0:05:01.2]} 4... Nf6 {[%clk 0:04:59.1]} 5. f3 {[%clk 0:05:00.9]} 5... g6 {[%clk 0:04:57.9]} 6. d4 {[%clk 0:05:00.9]} 6... d5 {[%clk 0:04:50]} 7. e5 {[%clk 0:05:01.4]} 7... Nfd7 {[%clk 0:04:50]} 8. f4 {[%clk 0:05:00.4]} 8... c4 {[%clk 0:04:50.5]} 9. Nf3 {[%clk 0:05:00.2]} 9... Bg7 {[%clk 0:04:48.8]} 10. b3 {[%clk 0:05:01.2]} 10... O-O {[%clk 0:04:49.1]} 11. bxc4 {[%clk 0:05:02.3]} 11... Nb6 {[%clk 0:04:46.9]} 12. cxd5 {[%clk 0:05:02.8]} 12... Nxd5 {[%clk 0:04:47.8]} 13. Ba3 {[%clk 0:05:02.4]} 13... Re8 {[%clk 0:04:47.2]} 14. Qd2 {[%clk 0:04:55.1]} 14... Nc6 {[%clk 0:04:44.3]} 15. O-O {[%clk 0:04:53.6]} 15... Bh6 {[%clk 0:04:35.9]} 16. Ne1 {[%clk 0:04:47.1]} 16... Qh4 {[%clk 0:04:32.9]} 17. Bc1 {[%clk 0:04:30.5]} 17... b5 {[%clk 0:04:05.6]} 18. c4 {[%clk 0:04:23.8]} 18... bxc4 {[%clk 0:04:04.4]} 19. Bxc4 {[%clk 0:04:25]} 19... Ncb4 {[%clk 0:03:43.8]} 20. a3 {[%clk 0:04:21.2]} 20... Nxf4 {[%clk 0:03:11.9]} 21. axb4 {[%clk 0:04:02.1]} 0-1

[Event "Live Chess"]
[Site "Chess.com"]
[Date "2011.01.15"]
[Round "-"]
[White "devilchrist"]
[Black "hipposcottimus"]
[Result "0-1"]
[CurrentPosition "3r2k1/ppp2pp1/3q3p/3P3P/2P2Q2/8/5PPK/8 w - -"]
[Timezone "UTC"]
[ECO "C44"]
[ECOUrl "https://www.chess.com/openings/Kings-Pawn-Opening-Kings-Knight-Variation-2...Nc6"]
[UTCDate "2011.01.15"]
[UTCTime "01:43:27"]
[WhiteElo "1281"]
[BlackElo "1365"]
[TimeControl "60+5"]
[Termination "hipposcottimus won by resignation"]
[StartTime "01:43:27"]
[EndDate "2011.01.15"]
[EndTime "01:48:13"]
[Link "https://www.chess.com/game/live/87679110"]

1. e4 {[%clk 0:01:00]} 1... e5 {[%clk 0:01:00]} 2. Nf3 {[%clk 0:01:03.5]} 2... Nc6 {[%clk 0:01:04.7]} 3. a3 {[%clk 0:01:05.8]} 3... Nf6 {[%clk 0:01:09.4]} 4. Nc3 {[%clk 0:01:08.8]} 4... d5 {[%clk 0:01:14]} 5. exd5 {[%clk 0:01:12.1]} 5... Nxd5 {[%clk 0:01:18.7]} 6. Nxd5 {[%clk 0:01:12.9]} 6... Qxd5 {[%clk 0:01:23.4]} 7. b3 {[%clk 0:01:15.6]} 7... Bg4 {[%clk 0:01:27.9]} 8. Be2 {[%clk 0:01:13.5]} 8... e4 {[%clk 0:01:30.7]} 9. c4 {[%clk 0:01:12.7]} 9... Qf5 {[%clk 0:01:17]} 10. Nh4 {[%clk 0:01:10.5]} 10... Bxe2 {[%clk 0:01:14.7]} 11. Qxe2 {[%clk 0:01:13.3]} 11... Qf6 {[%clk 0:01:16.7]} 12. O-O {[%clk 0:01:16.5]} 12... Qxa1 {[%clk 0:01:18.6]} 13. Qxe4+ {[%clk 0:01:16.2]} 13... Be7 {[%clk 0:01:19.4]} 14. Nf5 {[%clk 0:01:17.8]} 14... O-O {[%clk 0:01:22.2]} 15. Nxe7+ {[%clk 0:01:20.8]} 15... Nxe7 {[%clk 0:01:22.8]} 16. Qxe7 {[%clk 0:01:24.2]} 16... Rac8 {[%clk 0:01:20]} 17. h4 {[%clk 0:01:19.7]} 17... Rfe8 {[%clk 0:01:21.2]} 18. Qd7 {[%clk 0:01:23]} 18... Red8 {[%clk 0:01:18.1]} 19. Qe7 {[%clk 0:01:23.7]} 19... Rd3 {[%clk 0:01:15.1]} 20. h5 {[%clk 0:01:21.8]} 20... h6 {[%clk 0:01:16.2]} 21. Qe4 {[%clk 0:01:17]} 21... Rxb3 {[%clk 0:01:12.3]} 22. d4 {[%clk 0:01:05]} 22... Rb1 {[%clk 0:00:59.5]} 23. Qg4 {[%clk 0:00:57]} 23... Rd8 {[%clk 0:00:55.6]} 24. d5 {[%clk 0:00:51.7]} 24... Rxc1 {[%clk 0:00:57.1]} 25. Rxc1 {[%clk 0:00:54.6]} 25... Qxc1+ {[%clk 0:01:00.2]} 26. Kh2 {[%clk 0:00:57.2]} 26... Qxa3 {[%clk 0:01:04.4]} 27. Qf4 {[%clk 0:00:56.6]} 27... Qd6 {[%clk 0:01:01.5]} 0-1

[Event "Live Chess"]
[Site "Chess.com"]
[Date "2011.01.15"]
[Round "-"]
[White "varunx"]
[Black "hipposcottimus"]
[Result "0-1"]
[CurrentPosition "r4bnr/2k2ppp/p7/N7/2P1p3/p1n1P3/P4PPP/1R1R2K1 w - -"]
[Timezone "UTC"]
[ECO "D00"]
[ECOUrl "https://www.chess.com/openings/Queens-Pawn-Opening-1...d5-2.e3-c5"]
[UTCDate "2011.01.15"]
[UTCTime "01:35:09"]
[WhiteElo "1272"]
[BlackElo "1365"]
[TimeControl "600"]
[Termination "hipposcottimus won by resignation"]
[StartTime "01:35:09"]
[EndDate "2011.01.15"]
[EndTime "01:42:12"]
[Link "https://www.chess.com/game/live/87677146"]

1. d4 {[%clk 0:10:00]} 1... d5 {[%clk 0:10:00]} 2. e3 {[%clk 0:09:58.5]} 2... c5 {[%clk 0:09:57.6]} 3. dxc5 {[%clk 0:09:53.1]} 3... e5 {[%clk 0:09:56]} 4. b4 {[%clk 0:09:46.6]} 4... b6 {[%clk 0:09:52.3]} 5. Bb5+ {[%clk 0:09:34.3]} 5... Bd7 {[%clk 0:09:45.9]} 6. Bxd7+ {[%clk 0:09:28.6]} 6... Qxd7 {[%clk 0:09:45.1]} 7. c3 {[%clk 0:09:10.6]} 7... bxc5 {[%clk 0:09:43.1]} 8. Ba3 {[%clk 0:08:59.1]} 8... Na6 {[%clk 0:09:37.3]} 9. Nf3 {[%clk 0:08:45.8]} 9... cxb4 {[%clk 0:09:33]} 10. Nxe5 {[%clk 0:08:38.4]} 10... Qe6 {[%clk 0:09:31.4]} 11. Qa4+ {[%clk 0:08:27]} 11... Kd8 {[%clk 0:09:26.4]} 12. Nc6+ {[%clk 0:08:22.4]} 12... Kc7 {[%clk 0:09:23.4]} 13. Nd4 {[%clk 0:08:15.4]} 13... Qe4 {[%clk 0:09:11.1]} 14. Qa5+ {[%clk 0:08:01]} 14... Kd7 {[%clk 0:09:01.9]} 15. Qb5+ {[%clk 0:07:42.1]} 15... Kd8 {[%clk 0:08:51.3]} 16. O-O {[%clk 0:06:42.3]} 16... Nc7 {[%clk 0:08:44.2]} 17. Nc6+ {[%clk 0:06:28]} 17... Kc8 {[%clk 0:08:32.4]} 18. Nd2 {[%clk 0:05:59]} 18... Nxb5 {[%clk 0:08:30.4]} 19. Nxe4 {[%clk 0:05:50.6]} 19... bxa3 {[%clk 0:08:21.9]} 20. Rab1 {[%clk 0:05:39.4]} 20... Kc7 {[%clk 0:08:11.5]} 21. Na5 {[%clk 0:05:27.2]} 21... a6 {[%clk 0:08:07.2]} 22. Rfd1 {[%clk 0:05:18.3]} 22... dxe4 {[%clk 0:08:04.6]} 23. c4 {[%clk 0:05:06.2]} 23... Nc3 {[%clk 0:08:02.7]} 0-1

[Event "Live Chess"]
[Site "Chess.com"]
[Date "2011.01.15"]
[Round "-"]
[White "chi11go22rin33"]
[Black "hipposcottimus"]
[Result "1-0"]
[CurrentPosition "1r4nr/p2k1p1p/3b1n2/3pBN2/4p3/P3P3/2PP1PPP/RN2K2R w KQ -"]
[Timezone "UTC"]
[ECO "A00"]
[ECOUrl "https://www.chess.com/openings/Polish-Opening-Bugayev-Attack-2...d5-3.Bb2"]
[UTCDate "2011.01.15"]
[UTCTime "01:29:14"]
[WhiteElo "1200"]
[BlackElo "1359"]
[TimeControl "360"]
[Termination "chi11go22rin33 won by resignation"]
[StartTime "01:29:14"]
[EndDate "2011.01.15"]
[EndTime "01:33:58"]
[Link "https://www.chess.com/game/live/87675855"]

1. b4 {[%clk 0:06:00]} 1... e5 {[%clk 0:06:00]} 2. a3 {[%clk 0:05:57.8]} 2... d5 {[%clk 0:05:58.6]} 3. Bb2 {[%clk 0:05:55]} 3... d4 {[%clk 0:05:57.1]} 4. Nf3 {[%clk 0:05:49.9]} 4... Nd7 {[%clk 0:05:50]} 5. e3 {[%clk 0:05:40]} 5... c5 {[%clk 0:05:48.2]} 6. bxc5 {[%clk 0:05:28]} 6... e4 {[%clk 0:05:40.2]} 7. Nxd4 {[%clk 0:05:22.6]} 7... Bxc5 {[%clk 0:05:38.3]} 8. Nf5 {[%clk 0:05:13.8]} 8... Ndf6 {[%clk 0:05:28.7]} 9. Bb5+ {[%clk 0:04:57.9]} 9... Bd7 {[%clk 0:05:25.2]} 10. Qe2 {[%clk 0:04:21.7]} 10... Bc6 {[%clk 0:04:55.5]} 11. Qc4 {[%clk 0:04:08.5]} 11... Qd5 {[%clk 0:04:31.7]} 12. Bxc6+ {[%clk 0:03:56.8]} 12... bxc6 {[%clk 0:04:25.4]} 13. Qxd5 {[%clk 0:03:50.1]} 13... cxd5 {[%clk 0:04:18.8]} 14. Nxg7+ {[%clk 0:03:47.9]} 14... Kd7 {[%clk 0:04:14.6]} 15. Nf5 {[%clk 0:03:44.7]} 15... Rb8 {[%clk 0:03:58.3]} 16. Be5 {[%clk 0:03:28.3]} 16... Bd6 {[%clk 0:03:56]} 1-0

[Event "Live Chess"]
[Site "Chess.com"]
[Date "2011.01.15"]
[Round "-"]
[White "normistoo"]
[Black "hipposcottimus"]
[Result "0-1"]
[CurrentPosition "1r4k1/5ppp/4p3/b2p4/3P4/1r1RPP2/6P1/7K w - -"]
[Timezone "UTC"]
[ECO "D10"]
[ECOUrl "https://www.chess.com/openings/Slav-Defense-3.e3"]
[UTCDate "2011.01.15"]
[UTCTime "00:11:42"]
[WhiteElo "1213"]
[BlackElo "1359"]
[TimeControl "720"]
[Termination "hipposcottimus won by resignation"]
[StartTime "00:11:42"]
[EndDate "2011.01.15"]
[EndTime "00:22:45"]
[Link "https://www.chess.com/game/live/87657772"]

1. d4 {[%clk 0:12:00]} 1... d5 {[%clk 0:12:00]} 2. c4 {[%clk 0:11:55.8]} 2... c6 {[%clk 0:11:51.5]} 3. e3 {[%clk 0:11:53.7]} 3... Nd7 {[%clk 0:11:41.4]} 4. Nc3 {[%clk 0:11:43.8]} 4... e6 {[%clk 0:11:33.4]} 5. Nf3 {[%clk 0:11:38.6]} 5... Ngf6 {[%clk 0:11:23]} 6. cxd5 {[%clk 0:11:26.4]} 6... cxd5 {[%clk 0:11:17.7]} 7. Bb5 {[%clk 0:11:19.9]} 7... Be7 {[%clk 0:11:08.4]} 8. Ne5 {[%clk 0:11:14.4]} 8... O-O {[%clk 0:11:01.9]} 9. Nxd7 {[%clk 0:10:48]} 9... Bxd7 {[%clk 0:10:59.5]} 10. Bxd7 {[%clk 0:10:45.4]} 10... Qxd7 {[%clk 0:10:54.2]} 11. O-O {[%clk 0:10:37.3]} 11... Bd6 {[%clk 0:10:47]} 12. Qa4 {[%clk 0:10:28.5]} 12... Qc7 {[%clk 0:10:35.1]} 13. Nb5 {[%clk 0:10:19.1]} 13... Qb8 {[%clk 0:10:28.3]} 14. Bd2 {[%clk 0:10:11.7]} 14... Bxh2+ {[%clk 0:10:26.7]} 15. Kh1 {[%clk 0:10:04.4]} 15... a6 {[%clk 0:09:44.1]} 16. Nc3 {[%clk 0:09:50]} 16... b5 {[%clk 0:09:39.6]} 17. Qa5 {[%clk 0:09:40.4]} 17... b4 {[%clk 0:09:29.8]} 18. Na4 {[%clk 0:09:31.2]} 18... Ne4 {[%clk 0:09:04.3]} 19. Bxb4 {[%clk 0:09:23.9]} 19... Bc7 {[%clk 0:08:52.6]} 20. Bd6 {[%clk 0:08:47]} 20... Bxd6 {[%clk 0:08:42.4]} 21. b3 {[%clk 0:08:29.1]} 21... Rc8 {[%clk 0:08:20]} 22. Nb6 {[%clk 0:08:23.1]} 22... Bc7 {[%clk 0:08:11.8]} 23. Nd7 {[%clk 0:08:10.5]} 23... Bxa5 {[%clk 0:07:59.6]} 24. Nxb8 {[%clk 0:08:06.2]} 24... Raxb8 {[%clk 0:07:40.1]} 25. f3 {[%clk 0:07:54.7]} 25... Bc3 {[%clk 0:07:35.7]} 26. Rac1 {[%clk 0:07:46.9]} 26... Nd2 {[%clk 0:06:55.9]} 27. Rfd1 {[%clk 0:07:36.8]} 27... Nxb3 {[%clk 0:06:29.6]} 28. axb3 {[%clk 0:07:28.3]} 28... Rxb3 {[%clk 0:06:28]} 29. Rd3 {[%clk 0:07:24.1]} 29... a5 {[%clk 0:06:20.8]} 30. Ra1 {[%clk 0:07:17]} 30... Rcb8 {[%clk 0:06:06.6]} 31. Rxa5 {[%clk 0:07:11.7]} 31... Bxa5 {[%clk 0:06:01.5]} 0-1

[Event "Live Chess"]
[Site "Chess.com"]
[Date "2011.01.14"]
[Round "-"]
[White "hipposcottimus"]
[Black "ricardoconvers"]
[Result "1-0"]
[CurrentPosition "6k1/4N1P1/3p1pK1/p2P4/8/1p6/P2b4/8 b - -"]
[Timezone "UTC"]
[ECO "B21"]
[ECOUrl "https://www.chess.com/openings/Sicilian-Defense-Smith-Morra-Gambit-2...cxd4"]
[UTCDate "2011.01.14"]
[UTCTime "23:53:53"]
[WhiteElo "1354"]
[BlackElo "1390"]
[TimeControl "420"]
[Termination "hipposcottimus won by checkmate"]
[StartTime "23:53:53"]
[EndDate "2011.01.15"]
[EndTime "00:04:26"]
[Link "https://www.chess.com/game/live/87653537"]

1. e4 {[%clk 0:07:00]} 1... c5 {[%clk 0:07:00]} 2. d4 {[%clk 0:06:53.4]} 2... cxd4 {[%clk 0:06:56.5]} 3. Bd3 {[%clk 0:06:49.3]} 3... Nc6 {[%clk 0:06:52.6]} 4. c3 {[%clk 0:06:34.8]} 4... dxc3 {[%clk 0:06:49.5]} 5. Nxc3 {[%clk 0:06:32.6]} 5... e6 {[%clk 0:06:42.9]} 6. Nge2 {[%clk 0:06:31.8]} 6... Bb4 {[%clk 0:06:37.9]} 7. O-O {[%clk 0:06:31]} 7... Be7 {[%clk 0:06:34.1]} 8. f4 {[%clk 0:06:25.3]} 8... b6 {[%clk 0:06:23.5]} 9. f5 {[%clk 0:06:16]} 9... Bb7 {[%clk 0:06:13.5]} 10. Ng3 {[%clk 0:06:10.9]} 10... Ne5 {[%clk 0:06:08.6]} 11. Bf4 {[%clk 0:06:02.8]} 11... d6 {[%clk 0:05:45.9]} 12. Bb5+ {[%clk 0:05:59]} 12... Bc6 {[%clk 0:05:39.2]} 13. Bxe5 {[%clk 0:05:53.3]} 13... Bxb5 {[%clk 0:05:37]} 14. Bxg7 {[%clk 0:05:49.2]} 14... Bxf1 {[%clk 0:05:27.8]} 15. Qxf1 {[%clk 0:05:47.1]} 15... Bf6 {[%clk 0:05:08.6]} 16. Qb5+ {[%clk 0:05:43.8]} 16... Qd7 {[%clk 0:05:02.7]} 17. Qxd7+ {[%clk 0:05:40.8]} 17... Kxd7 {[%clk 0:04:58.8]} 18. fxe6+ {[%clk 0:05:37.5]} 18... Kxe6 {[%clk 0:04:53.3]} 19. Bxh8 {[%clk 0:05:35.6]} 19... Bxh8 {[%clk 0:04:50.9]} 20. Nd5 {[%clk 0:05:27.6]} 20... Rd8 {[%clk 0:04:35.1]} 21. Kf2 {[%clk 0:05:09]} 21... Bxb2 {[%clk 0:04:31.2]} 22. Rb1 {[%clk 0:04:59.5]} 22... Bd4+ {[%clk 0:04:26.4]} 23. Kf3 {[%clk 0:04:57.2]} 23... Nf6 {[%clk 0:04:23.7]} 24. Nf4+ {[%clk 0:04:47.8]} 24... Ke7 {[%clk 0:03:57.2]} 25. Nf5+ {[%clk 0:04:34.1]} 25... Kf8 {[%clk 0:03:25.1]} 26. Nd5 {[%clk 0:04:33.7]} 26... Be5 {[%clk 0:03:16.4]} 27. g3 {[%clk 0:04:26.2]} 27... Nxd5 {[%clk 0:03:12.2]} 28. exd5 {[%clk 0:04:21.3]} 28... f6 {[%clk 0:03:06.4]} 29. Rc1 {[%clk 0:04:16.6]} 29... Rd7 {[%clk 0:03:02.2]} 30. Rc8+ {[%clk 0:04:12.7]} 30... Kf7 {[%clk 0:02:55.6]} 31. h4 {[%clk 0:03:37.3]} 31... h5 {[%clk 0:02:47.6]} 32. g4 {[%clk 0:03:32]} 32... hxg4+ {[%clk 0:02:43.7]} 33. Kxg4 {[%clk 0:03:29.6]} 33... a5 {[%clk 0:02:24.8]} 34. Kh5 {[%clk 0:03:20.4]} 34... Bf4 {[%clk 0:02:14.3]} 35. Kg4 {[%clk 0:02:56]} 35... Bd2 {[%clk 0:02:09.7]} 36. h5 {[%clk 0:02:51.2]} 36... b5 {[%clk 0:02:04.3]} 37. h6 {[%clk 0:02:49.2]} 37... Kg6 {[%clk 0:01:58.7]} 38. Rg8+ {[%clk 0:02:43.7]} 38... Kh7 {[%clk 0:01:53.6]} 39. Rg7+ {[%clk 0:02:38.4]} 39... Rxg7+ {[%clk 0:01:45.9]} 40. hxg7 {[%clk 0:02:36.8]} 40... Kg8 {[%clk 0:01:40.7]} 41. Kh5 {[%clk 0:02:34.8]} 41... b4 {[%clk 0:01:33.5]} 42. Kg6 {[%clk 0:02:31.9]} 42... b3 {[%clk 0:01:22.3]} 43. Ne7# {[%clk 0:02:26.2]} 1-0

[Event "Live Chess"]
[Site "Chess.com"]
[Date "2011.01.14"]
[Round "-"]
[White "hipposcottimus"]
[Black "John_Dee"]
[Result "0-1"]
[CurrentPosition "3r1r1k/R4p1p/2p4p/8/4q3/2P5/5PPP/5RK1 w - -"]
[Timezone "UTC"]
[ECO "C58"]
[ECOUrl "https://www.chess.com/openings/Italian-Game-Knight-Attack-Polerio-Bishop-Check-Line-6...c6-7.dxc6"]
[UTCDate "2011.01.14"]
[UTCTime "23:43:43"]
[WhiteElo "1345"]
[BlackElo "1501"]
[TimeControl "600"]
[Termination "John_Dee won on time"]
[StartTime "23:43:43"]
[EndDate "2011.01.14"]
[EndTime "23:51:41"]
[Link "https://www.chess.com/game/live/87649423"]

1. e4 {[%clk 0:10:00]} 1... e5 {[%clk 0:10:00]} 2. Nf3 {[%clk 0:09:55.9]} 2... Nc6 {[%clk 0:09:58.2]} 3. Bc4 {[%clk 0:09:53.5]} 3... Nf6 {[%clk 0:09:55.6]} 4. Ng5 {[%clk 0:09:50.7]} 4... d5 {[%clk 0:09:54.3]} 5. exd5 {[%clk 0:09:49.8]} 5... Na5 {[%clk 0:09:52.8]} 6. Bb5+ {[%clk 0:09:48.5]} 6... c6 {[%clk 0:09:51.4]} 7. dxc6 {[%clk 0:09:46.3]} 7... Nxc6 {[%clk 0:09:49.6]} 8. Nc3 {[%clk 0:09:41.3]} 8... Bb4 {[%clk 0:09:38.2]} 9. Bxc6+ {[%clk 0:09:30]} 9... bxc6 {[%clk 0:09:35.8]} 10. O-O {[%clk 0:09:25.6]} 10... O-O {[%clk 0:09:32.3]} 11. Nge4 {[%clk 0:09:22.5]} 11... Bf5 {[%clk 0:09:08.8]} 12. Qf3 {[%clk 0:09:17]} 12... Bxc3 {[%clk 0:08:44.1]} 13. Qxf5 {[%clk 0:09:14.4]} 13... Nxe4 {[%clk 0:08:34]} 14. dxc3 {[%clk 0:09:09.2]} 14... Qd5 {[%clk 0:08:14.7]} 15. Qg4 {[%clk 0:08:41.6]} 15... Nf6 {[%clk 0:07:41.6]} 16. Qg3 {[%clk 0:08:35.3]} 16... Rad8 {[%clk 0:07:17.4]} 17. Bh6 {[%clk 0:08:31.2]} 17... Nh5 {[%clk 0:07:14.3]} 18. Qg4 {[%clk 0:08:23.4]} 18... e4 {[%clk 0:07:03.3]} 19. Rad1 {[%clk 0:08:14.1]} 19... Qxa2 {[%clk 0:06:24.7]} 20. Qxh5 {[%clk 0:07:33.9]} 20... gxh6 {[%clk 0:06:18.1]} 21. Ra1 {[%clk 0:07:00.7]} 21... Qxb2 {[%clk 0:06:02]} 22. Rxa7 {[%clk 0:06:57.4]} 22... Qxc2 {[%clk 0:05:56.2]} 23. Qg4+ {[%clk 0:06:31.1]} 23... Kh8 {[%clk 0:05:48.2]} 24. Qxe4 {[%clk 0:06:28.4]} 24... Qxe4 {[%clk 0:05:45.7]} 0-1